[Event "*** Titled Tuesday Blitz"]
[Site "Chess.com"]
[Date "2021.03.09"]
[Round "8"]
[White "rpragchess"]
[Black "AlexeiShirov"]
[Result "1/2-1/2"]
[WhiteElo "2924"]
[BlackElo "2850"]
[TimeControl "180+1"]
[EndTime "11:32:10 PST"]
[Termination "Game drawn by repetition"]

1. Nf3 {[%clk 0:02:36.9]} 1... d5 {[%clk 0:02:59.5]} 2. g3 {[%clk 0:02:36.2]}
2... g6 {[%clk 0:02:59.6]} 3. c4 {[%clk 0:02:35.6]} 3... c6 {[%clk 0:02:58.3]}
4. Qa4 {[%clk 0:02:34.3]} 4... e6 {[%clk 0:02:58.4]} 5. h4 {[%clk 0:02:30]} 5...
Nf6 {[%clk 0:02:48.1]} 6. d3 {[%clk 0:02:26.5]} 6... Bg7 {[%clk 0:02:45.8]} 7.
Nc3 {[%clk 0:02:26.4]} 7... O-O {[%clk 0:02:44.3]} 8. Bg2 {[%clk 0:02:25]} 8...
d4 {[%clk 0:02:41.9]} 9. Ne4 {[%clk 0:02:24.6]} 9... Nxe4 {[%clk 0:02:39.9]} 10.
dxe4 {[%clk 0:02:25.5]} 10... h5 {[%clk 0:02:32.6]} 11. Bf4 {[%clk 0:02:08.1]}
11... Nd7 {[%clk 0:02:26.7]} 12. Bd6 {[%clk 0:01:54.8]} 12... Nb6 {[%clk
0:02:19.9]} 13. Qb4 {[%clk 0:01:54.8]} 13... a5 {[%clk 0:02:15.5]} 14. Qc5
{[%clk 0:01:55]} 14... e5 {[%clk 0:01:38.1]} 15. Nxe5 {[%clk 0:00:58.4]} 15...
Re8 {[%clk 0:01:35.4]} 16. f4 {[%clk 0:00:45.7]} 16... Re6 {[%clk 0:01:21.8]}
17. Nxf7 {[%clk 0:00:23.9]} 17... Kxf7 {[%clk 0:01:20.6]} 18. e5 {[%clk
0:00:24.4]} 18... Rxd6 {[%clk 0:01:21.1]} 19. exd6 {[%clk 0:00:22.6]} 19... Nd7
{[%clk 0:01:21.2]} 20. Qa3 {[%clk 0:00:18.2]} 20... Qb6 {[%clk 0:01:20.3]} 21.
Qd3 {[%clk 0:00:12.9]} 21... Nc5 {[%clk 0:01:12.9]} 22. Qd2 {[%clk 0:00:12.9]}
22... Bf5 {[%clk 0:01:08.2]} 23. O-O {[%clk 0:00:07.3]} 23... Rd8 {[%clk
0:01:06.5]} 24. Kh2 {[%clk 0:00:06.9]} 24... Rxd6 {[%clk 0:01:05.3]} 25. Rad1
{[%clk 0:00:06.4]} 25... Re6 {[%clk 0:01:02.1]} 26. Bh3 {[%clk 0:00:04.4]} 26...
Re3 {[%clk 0:00:53]} 27. Bxf5 {[%clk 0:00:03.5]} 27... gxf5 {[%clk 0:00:52.2]}
28. Rf3 {[%clk 0:00:03.8]} 28... Ne4 {[%clk 0:00:50.5]} 29. Qc2 {[%clk
0:00:03.5]} 29... Kg6 {[%clk 0:00:43.8]} 30. Rxe3 {[%clk 0:00:03.3]} 30... dxe3
{[%clk 0:00:43.3]} 31. Rd7 {[%clk 0:00:03.9]} 31... Qxb2 {[%clk 0:00:36.8]} 32.
Qd1 {[%clk 0:00:02.6]} 32... Qd2 {[%clk 0:00:26.5]} 33. Rxd2 {[%clk 0:00:01.7]}
33... exd2 {[%clk 0:00:26.5]} 34. Kg2 {[%clk 0:00:02.2]} 34... Bb2 {[%clk
0:00:23.7]} 35. Kf3 {[%clk 0:00:01.3]} 35... Bc1 {[%clk 0:00:23.3]} 36. Qb3
{[%clk 0:00:01.5]} 36... Nc3 {[%clk 0:00:22.1]} 37. Qxb7 {[%clk 0:00:01.5]}
37... d1=Q {[%clk 0:00:21.1]} 38. Qxc6+ {[%clk 0:00:02.4]} 38... Kf7 {[%clk
0:00:20.5]} 39. Qc7+ {[%clk 0:00:02.8]} 39... Ke6 {[%clk 0:00:20.1]} 40. Qc8+
{[%clk 0:00:01.9]} 40... Qd7 {[%clk 0:00:18.7]} 41. Qg8+ {[%clk 0:00:02.5]}
41... Kd6 {[%clk 0:00:18.6]} 42. Qb8+ {[%clk 0:00:01.5]} 42... Qc7 {[%clk
0:00:17.8]} 43. Qf8+ {[%clk 0:00:02.1]} 43... Kc6 {[%clk 0:00:17.6]} 44. Qf6+
{[%clk 0:00:02.4]} 44... Kc5 {[%clk 0:00:16.8]} 45. Qxc3 {[%clk 0:00:02.5]}
45... Qc6+ {[%clk 0:00:15.6]} 46. Kf2 {[%clk 0:00:03]} 46... Qh1 {[%clk
0:00:15.2]} 47. Qxa5+ {[%clk 0:00:02.6]} 47... Kxc4 {[%clk 0:00:15.2]} 48. Qxf5
{[%clk 0:00:02.8]} 48... Qh2+ {[%clk 0:00:14.5]} 49. Kf3 {[%clk 0:00:03]} 49...
Qh1+ {[%clk 0:00:14.4]} 50. Kf2 {[%clk 0:00:03.4]} 50... Qh2+ {[%clk 0:00:14.5]}
51. Kf3 {[%clk 0:00:03.9]} 51... Qh1+ {[%clk 0:00:14.6]} 52. Kf2 {[%clk
0:00:04]} 1/2-1/2

[Event "*** Titled Tuesday Blitz"]
[Site "Chess.com"]
[Date "2021.03.09"]
[Round "8"]
[White "Frogo47"]
[Black "CrushingKings"]
[Result "0-1"]
[WhiteElo "2523"]
[BlackElo "2419"]
[TimeControl "180+1"]
[EndTime "11:32:11 PST"]
[Termination "CrushingKings won by resignation"]

1. e4 {[%clk 0:03:00.9]} 1... g6 {[%clk 0:03:00.1]} 2. d4 {[%clk 0:03:00.4]}
2... Bg7 {[%clk 0:03:00.7]} 3. c4 {[%clk 0:02:58]} 3... d6 {[%clk 0:02:59.4]} 4.
Nc3 {[%clk 0:02:57.5]} 4... Nd7 {[%clk 0:02:59.8]} 5. Be2 {[%clk 0:02:56.9]}
5... e5 {[%clk 0:02:57]} 6. d5 {[%clk 0:02:56.7]} 6... a5 {[%clk 0:02:57]} 7.
Be3 {[%clk 0:02:56.2]} 7... Nc5 {[%clk 0:02:57]} 8. g4 {[%clk 0:02:54.8]} 8...
h5 {[%clk 0:02:44.3]} 9. g5 {[%clk 0:02:53.2]} 9... f5 {[%clk 0:02:38.9]} 10.
gxf6 {[%clk 0:02:52.8]} 10... Nxf6 {[%clk 0:02:37.9]} 11. f3 {[%clk 0:02:52.2]}
11... h4 {[%clk 0:02:36.1]} 12. Qd2 {[%clk 0:02:40.1]} 12... Nh5 {[%clk
0:02:34.4]} 13. O-O-O {[%clk 0:02:40]} 13... Nf4 {[%clk 0:02:29]} 14. Bf1 {[%clk
0:02:40.1]} 14... h3 {[%clk 0:02:24.9]} 15. Kb1 {[%clk 0:02:38.2]} 15... Bd7
{[%clk 0:02:14]} 16. Nge2 {[%clk 0:02:36.8]} 16... Ng2 {[%clk 0:01:49.4]} 17.
Bg5 {[%clk 0:02:30.6]} 17... Bf6 {[%clk 0:01:47.1]} 18. Bxf6 {[%clk 0:01:31.5]}
18... Qxf6 {[%clk 0:01:45.2]} 19. Ng1 {[%clk 0:01:31.3]} 19... Nf4 {[%clk
0:00:58.7]} 20. Nge2 {[%clk 0:01:24.5]} 20... Ng2 {[%clk 0:00:32.2]} 21. Ng1
{[%clk 0:01:23.8]} 21... Nf4 {[%clk 0:00:16.2]} 22. Nce2 {[%clk 0:01:14.6]}
22... O-O {[%clk 0:00:15.7]} 23. Nxf4 {[%clk 0:01:12.4]} 23... Qxf4 {[%clk
0:00:16]} 24. Qxf4 {[%clk 0:00:48]} 24... Rxf4 {[%clk 0:00:16.9]} 25. Be2 {[%clk
0:00:41.8]} 25... Raf8 {[%clk 0:00:14.7]} 26. b3 {[%clk 0:00:40.7]} 26... b6
{[%clk 0:00:14.6]} 27. Kc2 {[%clk 0:00:40]} 27... g5 {[%clk 0:00:14.3]} 28. Re1
{[%clk 0:00:26.5]} 28... Kg7 {[%clk 0:00:13.9]} 29. Bd1 {[%clk 0:00:26]} 29...
Kh6 {[%clk 0:00:14.3]} 30. Re3 {[%clk 0:00:24.1]} 30... R8f6 {[%clk 0:00:10.7]}
31. a3 {[%clk 0:00:20]} 31... Na6 {[%clk 0:00:10.5]} 32. Kc3 {[%clk 0:00:19.6]}
32... Nc5 {[%clk 0:00:09.5]} 33. b4 {[%clk 0:00:19.4]} 33... axb4+ {[%clk
0:00:10.4]} 34. axb4 {[%clk 0:00:20.3]} 34... Nb7 {[%clk 0:00:11.1]} 35. Be2
{[%clk 0:00:19.5]} 35... Kh5 {[%clk 0:00:08.2]} 36. Kd2 {[%clk 0:00:18.5]} 36...
Kh4 {[%clk 0:00:08.7]} 37. Ke1 {[%clk 0:00:17.6]} 37... Nd8 {[%clk 0:00:07.1]}
38. Bd1 {[%clk 0:00:17.4]} 38... Nf7 {[%clk 0:00:07.6]} 39. Kf2 {[%clk
0:00:17.6]} 39... Nh6 {[%clk 0:00:07.9]} 40. Ne2 {[%clk 0:00:17.6]} 40... Ng4+
{[%clk 0:00:07.6]} 41. Ke1 {[%clk 0:00:17.7]} 41... Nxe3 {[%clk 0:00:08.3]} 42.
Nxf4 {[%clk 0:00:17.8]} 42... Rxf4 {[%clk 0:00:09.2]} 43. Be2 {[%clk 0:00:18.1]}
43... Ng2+ {[%clk 0:00:09.6]} 44. Kd2 {[%clk 0:00:17.7]} 44... g4 {[%clk
0:00:10.5]} 45. fxg4 {[%clk 0:00:17.3]} 45... Bxg4 {[%clk 0:00:11.4]} 46. Bd3
{[%clk 0:00:16.9]} 46... Rf2+ {[%clk 0:00:11.6]} 47. Kc3 {[%clk 0:00:16.9]}
47... Nf4 {[%clk 0:00:11.9]} 48. Bc2 {[%clk 0:00:16.1]} 48... Rf3+ {[%clk
0:00:12]} 49. Kb2 {[%clk 0:00:15.9]} 49... Rf2 {[%clk 0:00:12.3]} 50. Kc3 {[%clk
0:00:15.9]} 50... Bf3 {[%clk 0:00:12.9]} 51. Re1 {[%clk 0:00:14]} 51... Rxh2
{[%clk 0:00:12.9]} 52. c5 {[%clk 0:00:14.9]} 52... bxc5 {[%clk 0:00:12.1]} 53.
bxc5 {[%clk 0:00:15.8]} 53... dxc5 {[%clk 0:00:12.9]} 54. Re3 {[%clk 0:00:15.9]}
54... Rxc2+ {[%clk 0:00:12.9]} 55. Kxc2 {[%clk 0:00:15.7]} 55... h2 {[%clk
0:00:13.5]} 56. Rxf3 {[%clk 0:00:15.4]} 56... h1=Q {[%clk 0:00:13.4]} 57. Rc3
{[%clk 0:00:16.3]} 57... Qxe4+ {[%clk 0:00:13]} 0-1

[Event "*** Titled Tuesday Blitz"]
[Site "Chess.com"]
[Date "2021.03.09"]
[Round "8"]
[White "ShahMatKanal"]
[Black "Szparu"]
[Result "0-1"]
[WhiteElo "2499"]
[BlackElo "2655"]
[TimeControl "180+1"]
[EndTime "11:32:12 PST"]
[Termination "Szparu won by checkmate"]

1. d4 {[%clk 0:03:00.9]} 1... Nf6 {[%clk 0:02:53.6]} 2. c4 {[%clk 0:02:59.9]}
2... e6 {[%clk 0:02:50.9]} 3. a3 {[%clk 0:02:59]} 3... c5 {[%clk 0:02:48.2]} 4.
e3 {[%clk 0:02:55.9]} 4... b6 {[%clk 0:02:26.1]} 5. d5 {[%clk 0:02:50.5]} 5...
Bb7 {[%clk 0:02:22.3]} 6. Nc3 {[%clk 0:02:49.8]} 6... d6 {[%clk 0:02:16.8]} 7.
g3 {[%clk 0:02:43.5]} 7... exd5 {[%clk 0:02:15.4]} 8. Bg2 {[%clk 0:02:39.3]}
8... Nbd7 {[%clk 0:02:06.8]} 9. cxd5 {[%clk 0:02:30.5]} 9... g6 {[%clk
0:02:01.3]} 10. Nh3 {[%clk 0:02:30.5]} 10... Bg7 {[%clk 0:02:01.3]} 11. O-O
{[%clk 0:02:30]} 11... O-O {[%clk 0:02:01.8]} 12. Ra2 {[%clk 0:02:25.8]} 12...
Ne5 {[%clk 0:01:52.5]} 13. Nf4 {[%clk 0:02:20.1]} 13... Ba6 {[%clk 0:01:38.2]}
14. Re1 {[%clk 0:01:43.4]} 14... b5 {[%clk 0:01:38.2]} 15. h4 {[%clk 0:01:40.7]}
15... h5 {[%clk 0:01:36.8]} 16. b3 {[%clk 0:01:34.7]} 16... Rb8 {[%clk
0:01:29.8]} 17. Rd2 {[%clk 0:01:33]} 17... Re8 {[%clk 0:01:28]} 18. Bb2 {[%clk
0:01:32.1]} 18... Bc8 {[%clk 0:01:24.3]} 19. Qa1 {[%clk 0:01:18.7]} 19... Bd7
{[%clk 0:01:21.6]} 20. Nb1 {[%clk 0:01:03]} 20... a5 {[%clk 0:01:08.4]} 21. Rc1
{[%clk 0:01:02.1]} 21... a4 {[%clk 0:01:05.7]} 22. bxa4 {[%clk 0:00:48.3]} 22...
Nc4 {[%clk 0:01:05.4]} 23. Rxc4 {[%clk 0:00:33.5]} 23... bxc4 {[%clk 0:01:05.3]}
24. Qa2 {[%clk 0:00:34.4]} 24... Bxa4 {[%clk 0:01:00]} 25. Qxc4 {[%clk
0:00:34.3]} 25... Bb3 {[%clk 0:00:56.8]} 26. Qc3 {[%clk 0:00:31.1]} 26... Ba2
{[%clk 0:00:50.5]} 27. Qc1 {[%clk 0:00:28.3]} 27... Bxb1 {[%clk 0:00:48.9]} 28.
Qxb1 {[%clk 0:00:28.3]} 28... Qa5 {[%clk 0:00:47.7]} 29. Qc2 {[%clk 0:00:27]}
29... Rxb2 {[%clk 0:00:41.3]} 30. Qxb2 {[%clk 0:00:26.5]} 30... Ne4 {[%clk
0:00:41.8]} 31. Qb7 {[%clk 0:00:07.1]} 31... Nxd2 {[%clk 0:00:31.8]} 32. Nh3
{[%clk 0:00:03.5]} 32... Qa8 {[%clk 0:00:29.6]} 33. Qd7 {[%clk 0:00:03.3]} 33...
Qd8 {[%clk 0:00:29]} 34. Qc6 {[%clk 0:00:03]} 34... Ne4 {[%clk 0:00:26.6]} 35.
Bxe4 {[%clk 0:00:02.7]} 35... Rxe4 {[%clk 0:00:26.2]} 36. Ng5 {[%clk 0:00:03.6]}
36... Re7 {[%clk 0:00:25.8]} 37. a4 {[%clk 0:00:03.3]} 37... Bf6 {[%clk
0:00:25.7]} 38. Nf3 {[%clk 0:00:03]} 38... Rc7 {[%clk 0:00:21.8]} 39. Qb5 {[%clk
0:00:03.2]} 39... c4 {[%clk 0:00:20.2]} 40. Ne1 {[%clk 0:00:02.2]} 40... c3
{[%clk 0:00:19.7]} 41. Nc2 {[%clk 0:00:02.8]} 41... Qa8 {[%clk 0:00:18.2]} 42.
a5 {[%clk 0:00:02.9]} 42... Rc5 {[%clk 0:00:17.7]} 43. Qb6 {[%clk 0:00:03.4]}
43... Be7 {[%clk 0:00:10.8]} 44. a6 {[%clk 0:00:02.9]} 44... Qxd5 {[%clk
0:00:07]} 45. a7 {[%clk 0:00:03.3]} 45... Ra5 {[%clk 0:00:06.8]} 46. Qb8+ {[%clk
0:00:02.8]} 46... Kg7 {[%clk 0:00:06.4]} 47. Nd4 {[%clk 0:00:03.7]} 47... Ra1+
{[%clk 0:00:05.9]} 48. Kh2 {[%clk 0:00:02.6]} 48... Qh1# {[%clk 0:00:06]} 0-1

[Event "*** Titled Tuesday Blitz"]
[Site "Chess.com"]
[Date "2021.03.09"]
[Round "8"]
[White "chessdjw"]
[Black "Gerodot71"]
[Result "1-0"]
[WhiteElo "2739"]
[BlackElo "2584"]
[TimeControl "180+1"]
[EndTime "11:32:13 PST"]
[Termination "chessdjw won on time"]

1. e4 {[%clk 0:03:00.9]} 1... e5 {[%clk 0:02:38.4]} 2. Nf3 {[%clk 0:02:59.2]}
2... Nc6 {[%clk 0:02:36.3]} 3. Bb5 {[%clk 0:02:59.4]} 3... a6 {[%clk 0:02:35.9]}
4. Ba4 {[%clk 0:02:59.8]} 4... Nf6 {[%clk 0:02:35.4]} 5. O-O {[%clk 0:03:00.4]}
5... Be7 {[%clk 0:02:34.4]} 6. Re1 {[%clk 0:02:57.6]} 6... b5 {[%clk 0:02:33.8]}
7. Bb3 {[%clk 0:02:57.7]} 7... d6 {[%clk 0:02:33.8]} 8. c3 {[%clk 0:02:54.8]}
8... O-O {[%clk 0:02:33]} 9. h3 {[%clk 0:02:55.3]} 9... Nb8 {[%clk 0:02:32.5]}
10. d4 {[%clk 0:02:53.1]} 10... Nbd7 {[%clk 0:02:32.7]} 11. Nbd2 {[%clk
0:02:49.9]} 11... Bb7 {[%clk 0:02:32.2]} 12. Bc2 {[%clk 0:02:49.1]} 12... Re8
{[%clk 0:02:32]} 13. Nf1 {[%clk 0:02:49.4]} 13... Bf8 {[%clk 0:02:31.8]} 14. Ng3
{[%clk 0:02:49.7]} 14... g6 {[%clk 0:02:31.8]} 15. a4 {[%clk 0:02:49.3]} 15...
Bg7 {[%clk 0:02:27.1]} 16. Bd3 {[%clk 0:02:44]} 16... c6 {[%clk 0:02:13.9]} 17.
Bg5 {[%clk 0:02:43.9]} 17... h6 {[%clk 0:02:11.8]} 18. Be3 {[%clk 0:02:43.4]}
18... Qc7 {[%clk 0:02:09.2]} 19. Qd2 {[%clk 0:02:43.2]} 19... Kh7 {[%clk
0:02:05]} 20. b4 {[%clk 0:02:39.8]} 20... Rad8 {[%clk 0:01:58.9]} 21. axb5
{[%clk 0:02:38]} 21... axb5 {[%clk 0:01:57.4]} 22. dxe5 {[%clk 0:01:34.7]} 22...
Nxe5 {[%clk 0:01:52.8]} 23. Nxe5 {[%clk 0:01:31.2]} 23... dxe5 {[%clk
0:01:53.7]} 24. Qe2 {[%clk 0:01:30.1]} 24... Nd7 {[%clk 0:01:37.7]} 25. Bc2
{[%clk 0:01:20.9]} 25... Nf8 {[%clk 0:01:28.5]} 26. h4 {[%clk 0:00:38.2]} 26...
h5 {[%clk 0:01:22.1]} 27. Bb3 {[%clk 0:00:30.1]} 27... Ne6 {[%clk 0:01:21.3]}
28. Qf3 {[%clk 0:00:24.7]} 28... Nf4 {[%clk 0:01:18.8]} 29. Red1 {[%clk
0:00:18.8]} 29... Bf6 {[%clk 0:01:10.6]} 30. Rxd8 {[%clk 0:00:11.8]} 30... Rxd8
{[%clk 0:01:10.3]} 31. Nf1 {[%clk 0:00:09.8]} 31... Kg7 {[%clk 0:01:01.8]} 32.
g3 {[%clk 0:00:09.6]} 32... Nd3 {[%clk 0:01:01]} 33. Qe2 {[%clk 0:00:08.8]}
33... c5 {[%clk 0:00:41]} 34. bxc5 {[%clk 0:00:09]} 34... Nxc5 {[%clk
0:00:38.6]} 35. Bc2 {[%clk 0:00:07.9]} 35... Nxe4 {[%clk 0:00:33.1]} 36. Qxb5
{[%clk 0:00:03.3]} 36... Nxc3 {[%clk 0:00:31.1]} 37. Qb6 {[%clk 0:00:02.9]}
37... Qc8 {[%clk 0:00:22.2]} 38. Bb3 {[%clk 0:00:02.1]} 38... Nd5 {[%clk
0:00:19.7]} 39. Qb5 {[%clk 0:00:01.3]} 39... Bc6 {[%clk 0:00:18.3]} 40. Qc4
{[%clk 0:00:01.5]} 40... Bb7 {[%clk 0:00:15.3]} 41. Ra7 {[%clk 0:00:01.5]} 41...
Nxe3 {[%clk 0:00:13.6]} 42. Nxe3 {[%clk 0:00:01.5]} 42... Qb8 {[%clk 0:00:06.6]}
43. Qxf7+ {[%clk 0:00:01.5]} 43... Kh6 {[%clk 0:00:06.6]} 44. Rxb7 {[%clk
0:00:02.4]} 44... Qxb7 {[%clk 0:00:01.4]} 45. Qxb7 {[%clk 0:00:03.3]} 1-0

[Event "*** Titled Tuesday Blitz"]
[Site "Chess.com"]
[Date "2021.03.09"]
[Round "8"]
[White "lamomiablanca"]
[Black "frederiksvane"]
[Result "0-1"]
[WhiteElo "2424"]
[BlackElo "2660"]
[TimeControl "180+1"]
[EndTime "11:32:18 PST"]
[Termination "frederiksvane won by checkmate"]

1. e4 {[%clk 0:03:00.9]} 1... c5 {[%clk 0:02:48.9]} 2. d3 {[%clk 0:02:59.8]}
2... g6 {[%clk 0:02:48.5]} 3. g3 {[%clk 0:02:58.9]} 3... Bg7 {[%clk 0:02:48.3]}
4. Bg2 {[%clk 0:02:58.6]} 4... Nc6 {[%clk 0:02:49.2]} 5. f4 {[%clk 0:02:58]}
5... b5 {[%clk 0:02:35]} 6. Nf3 {[%clk 0:02:56]} 6... d6 {[%clk 0:02:23.3]} 7.
O-O {[%clk 0:02:55.1]} 7... Bb7 {[%clk 0:02:19.1]} 8. a4 {[%clk 0:02:53.4]} 8...
b4 {[%clk 0:02:14.7]} 9. Nbd2 {[%clk 0:02:51.7]} 9... e6 {[%clk 0:02:11.9]} 10.
Nc4 {[%clk 0:02:45.5]} 10... Nge7 {[%clk 0:02:11.4]} 11. e5 {[%clk 0:02:37.9]}
11... Nc8 {[%clk 0:02:08.8]} 12. exd6 {[%clk 0:02:27.8]} 12... Nxd6 {[%clk
0:02:09.7]} 13. Nce5 {[%clk 0:02:07.6]} 13... Nxe5 {[%clk 0:01:53.3]} 14. fxe5
{[%clk 0:02:04.3]} 14... Nf5 {[%clk 0:01:53.4]} 15. Bg5 {[%clk 0:01:21]} 15...
Qd7 {[%clk 0:01:44.7]} 16. Qd2 {[%clk 0:01:14.7]} 16... h6 {[%clk 0:01:40.4]}
17. Bf6 {[%clk 0:01:10]} 17... Bxf6 {[%clk 0:01:39.9]} 18. exf6 {[%clk
0:01:09.8]} 18... Rc8 {[%clk 0:01:10.7]} 19. Qf2 {[%clk 0:01:08.7]} 19... Bxf3
{[%clk 0:01:10.5]} 20. Bxf3 {[%clk 0:00:57]} 20... Qd4 {[%clk 0:01:10.7]} 21.
Be4 {[%clk 0:00:35.1]} 21... h5 {[%clk 0:00:43.9]} 22. b3 {[%clk 0:00:29.2]}
22... Qxf6 {[%clk 0:00:36.8]} 23. Kh1 {[%clk 0:00:20.2]} 23... O-O {[%clk
0:00:33.1]} 24. Rae1 {[%clk 0:00:19.4]} 24... Qd4 {[%clk 0:00:29.3]} 25. Qe2
{[%clk 0:00:17.3]} 25... Kg7 {[%clk 0:00:25.3]} 26. Rf2 {[%clk 0:00:14.6]} 26...
a5 {[%clk 0:00:20.8]} 27. Ref1 {[%clk 0:00:14.6]} 27... Nd6 {[%clk 0:00:20.6]}
28. Bg2 {[%clk 0:00:13.6]} 28... Rce8 {[%clk 0:00:20.2]} 29. Rf4 {[%clk
0:00:13.5]} 29... Qc3 {[%clk 0:00:20.5]} 30. g4 {[%clk 0:00:10.9]} 30... hxg4
{[%clk 0:00:15.9]} 31. Rxg4 {[%clk 0:00:09.1]} 31... f5 {[%clk 0:00:13.3]} 32.
Rg3 {[%clk 0:00:07.8]} 32... Qf6 {[%clk 0:00:09.9]} 33. Rg1 {[%clk 0:00:05.5]}
33... Rh8 {[%clk 0:00:08.5]} 34. Rf3 {[%clk 0:00:06.2]} 34... Rh6 {[%clk
0:00:06.5]} 35. h3 {[%clk 0:00:06.6]} 35... Reh8 {[%clk 0:00:06.7]} 36. Bf1
{[%clk 0:00:07.1]} 36... Nf7 {[%clk 0:00:05.8]} 37. Rfg3 {[%clk 0:00:07]} 37...
f4 {[%clk 0:00:05]} 38. Rg4 {[%clk 0:00:06.5]} 38... Ne5 {[%clk 0:00:02.9]} 39.
Rg5 {[%clk 0:00:05.8]} 39... Rxh3+ {[%clk 0:00:02.2]} 40. Bxh3 {[%clk
0:00:05.6]} 40... Rxh3+ {[%clk 0:00:03.1]} 41. Qh2 {[%clk 0:00:04.7]} 41...
Rxh2+ {[%clk 0:00:03.1]} 42. Kxh2 {[%clk 0:00:05.6]} 42... Nf3+ {[%clk
0:00:03.7]} 43. Kh3 {[%clk 0:00:05.7]} 43... Nxg5+ {[%clk 0:00:04.6]} 44. Kg4
{[%clk 0:00:06.4]} 44... Qf5+ {[%clk 0:00:04.4]} 45. Kh4 {[%clk 0:00:06.2]}
45... e5 {[%clk 0:00:03.2]} 46. Rg4 {[%clk 0:00:06.2]} 46... Nf3+ {[%clk
0:00:03.1]} 47. Kh3 {[%clk 0:00:06.2]} 47... Qh5+ {[%clk 0:00:03.8]} 48. Rh4
{[%clk 0:00:06.3]} 48... Qxh4+ {[%clk 0:00:04.1]} 49. Kg2 {[%clk 0:00:07.2]}
49... Qg3+ {[%clk 0:00:04.6]} 50. Kf1 {[%clk 0:00:07.3]} 50... Qg1+ {[%clk
0:00:04.8]} 51. Ke2 {[%clk 0:00:08.2]} 51... Qe3+ {[%clk 0:00:05.4]} 52. Kf1
{[%clk 0:00:08.2]} 52... Nd2+ {[%clk 0:00:05.8]} 53. Kg2 {[%clk 0:00:09.1]}
53... Qg3+ {[%clk 0:00:06.1]} 54. Kh1 {[%clk 0:00:08.1]} 54... Nf3 {[%clk
0:00:07]} 55. d4 {[%clk 0:00:07.9]} 55... Qh2# {[%clk 0:00:07.9]} 0-1

[Event "*** Titled Tuesday Blitz"]
[Site "Chess.com"]
[Date "2021.03.09"]
[Round "8"]
[White "Omk124"]
[Black "GMJustin"]
[Result "1-0"]
[WhiteElo "2456"]
[BlackElo "2271"]
[TimeControl "180+1"]
[EndTime "11:32:18 PST"]
[Termination "Omk124 won by checkmate"]

1. e4 {[%clk 0:03:00.9]} 1... c5 {[%clk 0:02:54.1]} 2. Nf3 {[%clk 0:03:00.2]}
2... e6 {[%clk 0:02:53.3]} 3. d4 {[%clk 0:03:00.1]} 3... cxd4 {[%clk 0:02:52.8]}
4. Nxd4 {[%clk 0:03:01]} 4... Nc6 {[%clk 0:02:52.9]} 5. g3 {[%clk 0:02:59.2]}
5... d5 {[%clk 0:02:50]} 6. Bg2 {[%clk 0:02:53.9]} 6... Qb6 {[%clk 0:02:15.2]}
7. Nxc6 {[%clk 0:02:42.4]} 7... bxc6 {[%clk 0:02:14.7]} 8. O-O {[%clk
0:02:41.7]} 8... Nf6 {[%clk 0:02:11.2]} 9. exd5 {[%clk 0:02:41.6]} 9... cxd5
{[%clk 0:02:10.7]} 10. b3 {[%clk 0:02:38.2]} 10... Be7 {[%clk 0:02:02.2]} 11.
Bb2 {[%clk 0:02:38.3]} 11... O-O {[%clk 0:02:02]} 12. Nd2 {[%clk 0:02:38.1]}
12... Bb7 {[%clk 0:02:00.1]} 13. c4 {[%clk 0:02:33.5]} 13... Rfd8 {[%clk
0:01:44.7]} 14. Qe2 {[%clk 0:02:32.4]} 14... Rac8 {[%clk 0:01:37.6]} 15. Rfd1
{[%clk 0:02:30.8]} 15... Ba6 {[%clk 0:01:23.4]} 16. Bf1 {[%clk 0:01:48]} 16...
dxc4 {[%clk 0:01:12.4]} 17. Nxc4 {[%clk 0:01:47.7]} 17... Bxc4 {[%clk
0:01:09.6]} 18. Rxd8+ {[%clk 0:01:46.8]} 18... Rxd8 {[%clk 0:01:02.3]} 19. bxc4
{[%clk 0:01:37.7]} 19... Ne4 {[%clk 0:00:23.1]} 20. Qxe4 {[%clk 0:00:16.5]}
20... Qxb2 {[%clk 0:00:23]} 21. Qb1 {[%clk 0:00:16.1]} 21... Qd4 {[%clk
0:00:22.3]} 22. Qe1 {[%clk 0:00:15.3]} 22... Bc5 {[%clk 0:00:19.9]} 23. Rb1
{[%clk 0:00:13.9]} 23... g6 {[%clk 0:00:19.3]} 24. Qe2 {[%clk 0:00:10.9]} 24...
Qc3 {[%clk 0:00:16.7]} 25. Rd1 {[%clk 0:00:08.7]} 25... Rxd1 {[%clk 0:00:15.5]}
26. Qxd1 {[%clk 0:00:09.6]} 26... Kg7 {[%clk 0:00:15.5]} 27. Qb3 {[%clk
0:00:08.1]} 27... Qd4 {[%clk 0:00:15.4]} 28. Qc2 {[%clk 0:00:07.4]} 28... a5
{[%clk 0:00:15.4]} 29. Bd3 {[%clk 0:00:06.8]} 29... f5 {[%clk 0:00:14.9]} 30.
Kg2 {[%clk 0:00:07]} 30... e5 {[%clk 0:00:14.9]} 31. Bf1 {[%clk 0:00:05.8]}
31... e4 {[%clk 0:00:15]} 32. h3 {[%clk 0:00:01.4]} 32... h5 {[%clk 0:00:14.9]}
33. h4 {[%clk 0:00:02]} 33... Kf6 {[%clk 0:00:14.2]} 34. Qe2 {[%clk 0:00:02.3]}
34... Qc3 {[%clk 0:00:13.8]} 35. Qd1 {[%clk 0:00:01.4]} 35... Bd4 {[%clk
0:00:13.2]} 36. Qe2 {[%clk 0:00:01.8]} 36... a4 {[%clk 0:00:13.1]} 37. c5 {[%clk
0:00:02.4]} 37... Qxc5 {[%clk 0:00:12.6]} 38. Qa6+ {[%clk 0:00:03.3]} 38... Kg7
{[%clk 0:00:11.8]} 39. Qxa4 {[%clk 0:00:03.2]} 39... Bxf2 {[%clk 0:00:11]} 40.
Qd7+ {[%clk 0:00:03.9]} 40... Kh6 {[%clk 0:00:10.7]} 41. Qd2+ {[%clk 0:00:03]}
41... Be3 {[%clk 0:00:10.3]} 42. Qd8 {[%clk 0:00:02.8]} 42... Bd4 {[%clk
0:00:10.2]} 43. Qf8+ {[%clk 0:00:02.5]} 43... Bg7 {[%clk 0:00:10.1]} 44. Qxc5
{[%clk 0:00:02.6]} 44... Bf6 {[%clk 0:00:08.6]} 45. Qe3+ {[%clk 0:00:02.8]}
45... Kg7 {[%clk 0:00:08.9]} 46. a4 {[%clk 0:00:03.2]} 46... Kf7 {[%clk
0:00:09.1]} 47. a5 {[%clk 0:00:03.8]} 47... Ke7 {[%clk 0:00:09.1]} 48. a6 {[%clk
0:00:04]} 48... Kd7 {[%clk 0:00:09]} 49. a7 {[%clk 0:00:04.5]} 49... Kc7 {[%clk
0:00:08.6]} 50. a8=Q {[%clk 0:00:05]} 50... Kd7 {[%clk 0:00:08.4]} 51. Qea7+
{[%clk 0:00:04.8]} 51... Ke6 {[%clk 0:00:08.3]} 52. Qc6+ {[%clk 0:00:04.8]}
52... Ke5 {[%clk 0:00:07.6]} 53. Qac7+ {[%clk 0:00:05.1]} 53... Kd4 {[%clk
0:00:06.8]} 54. Qc3+ {[%clk 0:00:05.5]} 54... Kd5 {[%clk 0:00:06.6]} 55. Q7c6#
{[%clk 0:00:06.2]} 1-0